{"text_format":"3","workbook":"xlsx","n_sheets":2,"sheets":["Формуляр за оферта","Структура на себестойността"],"not_rendered":{"charts":1,"images":2,"defined_names":4},"read":"whole","date_system":"1900"}

{"sheet":"Формуляр за оферта","index":0,"n_rows":48,"n_cols":7,"rows_kept":48,"merged":[[15,1,25,5],[29,1,31,5],[35,1,37,5],[43,1,45,5]]}
[]
[null,"ФОРМУЛЯР ЗА СТРОИТЕЛНА ОФЕРТА",{"$nulls":4}," "]
[]
[]
[null,"ИНФОРМАЦИЯ ЗА СОБСТВЕНИКА",null,null,"ИНФОРМАЦИЯ ЗА ПРЕДПРИЕМАЧА"]
[null,"Име","Мартин Банков",null,"Фирма","Fabrikam, Inc."]
[null,"Адрес","ул. Солунска 123",null,"Име","Борислав Димитров"]
[null,"Град, пощенски код","София 12345",null,"Адрес","ул. Т. Каблешков 321"]
[null,"Телефон",8885550111,null,"Град, пощенски код","София 12345"]
[null,"Имейл","martin@proseware.com",null,"Телефон",8885550123]
[{"$nulls":4},"Имейл","borislav@fabrikam.com"]
[null,"Име на проект","Стълба към бизнеса",null,"Дата на изпълнение","2013-07-14"]
[]
[null,"ОБХВАТ НА РАБОТА"]
[]
[null,"Обхватът на работата трябва да бъде описан тук. Въведете всички спецификации, които са нужни. Това е проект на макет за изграждане на голямо стълбище. Ще използваме само дървесина с размери 2x4 и 2x8, както и скоби за напречни греди, за да изградим рамката. Стъпалата ще бъдат изрязани от материал с размери 2x4. Ще бъдат използвани винтове, не по-къси от 50 мм. Пироните ще бъдат не по-къси от 76 мм. По проект, всяко стъпало ще може да издържи минимум 250 кг. Стъпалата ще бъдат успоредни на пода на къщата и ще бъдат прикрепени към сградата. Предприемачът носи отговорност за почистването."]
{"$rows_empty":11}
[null,"НЕ ВКЛЮЧВА"]
[]
[null,"Няма да бъдат монтирани перила. Мястото трябва да бъде подготвено от собственика. Стълбището ще бъде боядисано от собственика."]
[]
[]
[]
[null,"ПРЕДЛОЖЕНИЕ НА ФИРМАТА"]
[]
[null,"Ние, Fabrikam, Inc., предлагаме гореописаните работни дейности да бъдат изпълнени до 14.07.2011 г. срещу сумата от 476,43 лв."]
[]
[]
[]
[null,"Подадено от (представител на фирмата)",{"$nulls":3},"Дата"]
[]
[null,"СЪГЛАСИЕ НА СОБСТВЕНИКА"]
[]
[null,"Аз, Мартин Банков, приемам предложените по-горе работни дейности да бъдат изпълнени до 14.07.2011 г. срещу сумата от 476,43 лв."]
[]
[]
[]
[null,"Подадено от (собственик или упълномощен представител)",{"$nulls":3},"Дата"]

{"sheet":"Структура на себестойността","index":1,"n_rows":47,"n_cols":6,"rows_kept":47,"merged":[[42,3,42,4],[43,3,43,4],[44,3,44,4],[45,3,45,4],[46,3,46,4],[47,3,47,4],[48,3,48,4],[49,3,49,4]]}
[]
[null,"РАЗХОДИ ПО ОФЕРТАТА НАКРАТКО",{"$nulls":3}," "]
[]
[]
[null,"СПИСЪК С МАТЕРИАЛИ И РАЗХОДИ"]
[]
[null,"Брой","Описание","Стойност","Общо"," "]
[null,5,"2x8x10 дървесина",{"v":6.75,"d":"6.75 лв."},{"$f":"Оферти[Стойност]*Оферти[Брой]","v":{"v":33.75,"d":"33.75 лв."}},{"$f":"_xlfn.RANK.EQ(Оферти[[#This Row],[Общо]],Оферти[Общо])","v":4}]
[null,20,"2x4x10 дървесина",{"v":4.97,"d":"4.97 лв."},{"$f":"Оферти[Стойност]*Оферти[Брой]","v":{"v":99.39999999999999,"d":"99.40 лв."}},{"$f":"_xlfn.RANK.EQ(Оферти[[#This Row],[Общо]],Оферти[Общо])","v":2}]
[null,30,"Скоби за напречни греди",{"v":2.49,"d":"2.49 лв."},{"$f":"Оферти[Стойност]*Оферти[Брой]","v":{"v":74.7,"d":"74.70 лв."}},{"$f":"_xlfn.RANK.EQ(Оферти[[#This Row],[Общо]],Оферти[Общо])","v":3}]
[null,2,"Кутия винтове, 50 мм",{"v":6.67,"d":"6.67 лв."},{"$f":"Оферти[Стойност]*Оферти[Брой]","v":{"v":13.34,"d":"13.34 лв."}},{"$f":"_xlfn.RANK.EQ(Оферти[[#This Row],[Общо]],Оферти[Общо])","v":6}]
[null,2,"Кутия пирони, 76 мм",{"v":3.25,"d":"3.25 лв."},{"$f":"Оферти[Стойност]*Оферти[Брой]","v":{"v":6.5,"d":"6.50 лв."}},{"$f":"_xlfn.RANK.EQ(Оферти[[#This Row],[Общо]],Оферти[Общо])","v":7}]
[null,2,"Чифт ръкавици, кожа",{"v":7.75,"d":"7.75 лв."},{"$f":"Оферти[Стойност]*Оферти[Брой]","v":{"v":15.5,"d":"15.50 лв."}},{"$f":"_xlfn.RANK.EQ(Оферти[[#This Row],[Общо]],Оферти[Общо])","v":5}]
[null,2,"Разходи за работници",{"v":100,"d":"100.00 лв."},{"$f":"Оферти[Стойност]*Оферти[Брой]","v":{"v":200,"d":"200.00 лв."}},{"$f":"_xlfn.RANK.EQ(Оферти[[#This Row],[Общо]],Оферти[Общо])","v":1}]
[{"$nulls":4},{"$f":"Оферти[Стойност]*Оферти[Брой]","v":0},{"$f":"_xlfn.RANK.EQ(Оферти[[#This Row],[Общо]],Оферти[Общо])","v":8}]
[{"$nulls":4},{"$f":"Оферти[Стойност]*Оферти[Брой]","v":0},{"$f":"_xlfn.RANK.EQ(Оферти[[#This Row],[Общо]],Оферти[Общо])","v":8}]
[{"$nulls":4},{"$f":"Оферти[Стойност]*Оферти[Брой]","v":0},{"$f":"_xlfn.RANK.EQ(Оферти[[#This Row],[Общо]],Оферти[Общо])","v":8}]
[{"$nulls":4},{"$f":"Оферти[Стойност]*Оферти[Брой]","v":0},{"$f":"_xlfn.RANK.EQ(Оферти[[#This Row],[Общо]],Оферти[Общо])","v":8}]
[{"$nulls":4},{"$f":"Оферти[Стойност]*Оферти[Брой]","v":0},{"$f":"_xlfn.RANK.EQ(Оферти[[#This Row],[Общо]],Оферти[Общо])","v":8}]
[{"$nulls":4},{"$f":"Оферти[Стойност]*Оферти[Брой]","v":0},{"$f":"_xlfn.RANK.EQ(Оферти[[#This Row],[Общо]],Оферти[Общо])","v":8}]
[{"$nulls":4},{"$f":"Оферти[Стойност]*Оферти[Брой]","v":0},{"$f":"_xlfn.RANK.EQ(Оферти[[#This Row],[Общо]],Оферти[Общо])","v":8}]
[{"$nulls":4},{"$f":"Оферти[Стойност]*Оферти[Брой]","v":0},{"$f":"_xlfn.RANK.EQ(Оферти[[#This Row],[Общо]],Оферти[Общо])","v":8}]
[{"$nulls":4},{"$f":"Оферти[Стойност]*Оферти[Брой]","v":0},{"$f":"_xlfn.RANK.EQ(Оферти[[#This Row],[Общо]],Оферти[Общо])","v":8}]
[{"$nulls":4},{"$f":"Оферти[Стойност]*Оферти[Брой]","v":0},{"$f":"_xlfn.RANK.EQ(Оферти[[#This Row],[Общо]],Оферти[Общо])","v":8}]
[{"$nulls":4},{"$f":"Оферти[Стойност]*Оферти[Брой]","v":0},{"$f":"_xlfn.RANK.EQ(Оферти[[#This Row],[Общо]],Оферти[Общо])","v":8}]
[{"$nulls":4},{"$f":"Оферти[Стойност]*Оферти[Брой]","v":0},{"$f":"_xlfn.RANK.EQ(Оферти[[#This Row],[Общо]],Оферти[Общо])","v":8}]
[{"$nulls":4},{"$f":"Оферти[Стойност]*Оферти[Брой]","v":0},{"$f":"_xlfn.RANK.EQ(Оферти[[#This Row],[Общо]],Оферти[Общо])","v":8}]
[{"$nulls":4},{"$f":"Оферти[Стойност]*Оферти[Брой]","v":0},{"$f":"_xlfn.RANK.EQ(Оферти[[#This Row],[Общо]],Оферти[Общо])","v":8}]
[{"$nulls":4},{"$f":"Оферти[Стойност]*Оферти[Брой]","v":0},{"$f":"_xlfn.RANK.EQ(Оферти[[#This Row],[Общо]],Оферти[Общо])","v":8}]
[{"$nulls":4},{"$f":"Оферти[Стойност]*Оферти[Брой]","v":0},{"$f":"_xlfn.RANK.EQ(Оферти[[#This Row],[Общо]],Оферти[Общо])","v":8}]
[1,{"$nulls":3},{"$f":"Оферти[Стойност]*Оферти[Брой]","v":0},{"$f":"_xlfn.RANK.EQ(Оферти[[#This Row],[Общо]],Оферти[Общо])","v":8}]
[2,null,null,"Междинна сума",{"$f":"SUBTOTAL(109,Оферти[Общо])","v":{"v":443.18999999999994,"d":"443.19 лв."}},{"$f":"SUBTOTAL(103,Оферти[[ ]])","v":24}]
[3,null,null,"Данъчна ставка",{"v":0.075,"d":"7.50%"}]
[4,null,null,"Данък",{"$f":"Данъчна_ставка*Оферти[[#Totals],[Общо]]","v":{"v":33.23924999999999,"d":"33.24 лв."}}]
[5,null,null,"Крайна обща сума",{"$f":"Данък+Оферти[[#Totals],[Общо]]","v":{"v":476.4292499999999,"d":"476.43 лв."}}]
[]
[]
[]
[null,"РАЗБИВКА НА МАТЕРИАЛИ И РАЗХОДИ"]
[]
[]
[null,null,"ОБЩО","ЗАБЕЛЕЖКИ"]
[null,{"$f":"INDEX(Оферти[],MATCH(A31,Оферти[[ ]],0),2)","v":"Разходи за работници"},{"$f":"INDEX(Оферти[],MATCH(A31,Оферти[[ ]],0),4)","v":{"v":200,"d":"$200.00"}}]
[null,{"$f":"INDEX(Оферти[],MATCH(A32,Оферти[[ ]],0),2)","v":"2x4x10 дървесина"},{"$f":"INDEX(Оферти[],MATCH(A32,Оферти[[ ]],0),4)","v":{"v":99.39999999999999,"d":"$99.40"}}]
[null,{"$f":"INDEX(Оферти[],MATCH(A33,Оферти[[ ]],0),2)","v":"Скоби за напречни греди"},{"$f":"INDEX(Оферти[],MATCH(A33,Оферти[[ ]],0),4)","v":{"v":74.7,"d":"$74.70"}}]
[null,{"$f":"INDEX(Оферти[],MATCH(A34,Оферти[[ ]],0),2)","v":"2x8x10 дървесина"},{"$f":"INDEX(Оферти[],MATCH(A34,Оферти[[ ]],0),4)","v":{"v":33.75,"d":"$33.75"}}]
[null,{"$f":"INDEX(Оферти[],MATCH(A35,Оферти[[ ]],0),2)","v":"Чифт ръкавици, кожа"},{"$f":"INDEX(Оферти[],MATCH(A35,Оферти[[ ]],0),4)","v":{"v":15.5,"d":"$15.50"}}]